Cogmind - Beta 15 @@@ ROGUE MODE // 2025.06.01 @ 20:06:58 Player: Waste Result: Destroyed by G-73 Enforcer with Phase Gun Performance ------------- Evolutions (9) 4500 Regions Visited (27) 5400 Robots Destroyed (264) 1320 Value Destroyed (8837) 8837 Prototype IDs (70) 1400 Alien Tech Used (6) 1200 Bonus (6429) 6429 TOTAL SCORE: 29086 Bonus ------- High Alert Combat Kills 204 Follower Combat Kills 183 Met Data Miner 300 Met Warlord at Base 500 MAIN.C Attacked Warlord 500 Met Warlord at Research 2000 Invited to Help at Command 2000 Scanned by Researcher 500 Pursued by Intercept 500 Friendly Fire -258 Cogmind --------- Core Integrity 0/1600 Matter 233/300 Energy 100/100 System Corruption 24% Temperature Cool (0) Movement Core (50) Location -1/Access Parts ------- > --- POWER (3) -------- (None) > --- PROPULSION (6) --- (None) > --- UTILITY (13) ----- (None) > --- WEAPON (4) ------- (None) > --- INVENTORY (5) ---- Experimental Cooling System Improved Trap Extractor (6/6 Fire) Null Cannon Peak State ------------ > --- POWER ------------ Mini Fusion Reactor Micro Antimatter Reactor Improved Quantum Reactor > --- PROPULSION ------- Combat Antigrav System Combat Antigrav System Antigrav Array Experimental Gyrokinetic Inverter Cooled Linear Gravjet > --- UTILITY ---------- Experimental Power Amplifier Experimental Cooling System High-capacity Storage Unit Advanced Gravity Neutralizer Long-range Sensor Array Experimental Signal Interpreter Advanced Melee Analysis Suite Experimental Core Analyzer Experimental Core Analyzer Experimental Actuator Array Advanced Phase Shifter System Mapper Deep Network Scanner > --- WEAPON ----------- Sigix Broadsword Plasma Lance Plasma Lance > --- INVENTORY -------- Vortex Chain Reactor Improved Antigrav System Improved Gyrokinetic Inverter Experimental Gyrokinetic Inverter Structural Scanner Nanoactuators Experimental Reaction Control System Experimental Reaction Control System Experimental Cloaking Device Heavy Regenerative Plating Improved Trap Extractor Core Regenerator Null Cannon Micro-nuke Launcher Nanosword Plasma Lance [Rating: 241] Favorites ----------- Power Cooled Deuterium Engine Engine Cooled Deuterium Engine Power Core Micro Nuclear Core Reactor Light Antimatter Reactor Propulsion Combat Gravmag System Treads Light Treads Leg Aluminum Leg Wheel Compact Wheel Hover Unit Combat Gravmag System Utility System Mapper Device Structural Scanner Storage Large Storage Unit Processor Advanced Melee Analysis Suite Hackware System Mapper Protection Improved Utility Shielding Weapon Great Axe Energy Gun Particle Gun Energy Cannon Heavy Proton Cannon Ballistic Gun Enhanced Autogun Ballistic Cannon Hardcell Cannon Launcher Rocket Launcher Impact Weapon Heavy Hammer Slashing Weapon Great Axe Piercing Weapon Plasma Lance Build | -11 -10 -10 -9 -9 -8 -7 -7 -7 -7 -6 -6 -5 -5 -5 -5 -5 -5 -4 -4 -4 -4 -3 -3 -2 -2 -2 -1 ------- Run | Yrd Mat Min Mat Min Mat Fac Low Low Dat Pro Fac Fac Was Fac Upp Upp War Pro Fac Was Fac Res Qua Res Tes Sec Acc Slots Evolved 18 | . . . 2 . 2 2 . . . . 2 2 . . . . . . 2 . . 2 . 2 . . 2 Power 2 | . . . . . . . . . . . . . . . . . . . . . . 1 . 1 . . . Propulsion 3 | . . . 2 . . . . . . . . . . . . . . . 1 . . . . . . . . Utility 11 | . . . . . 2 2 . . . . 2 2 . . . . . . 1 . . 1 . 1 . . . Weapon 2 | . . . . . . . . . . . . . . . . . . . . . . . . . . . 2 Parts Attached 218 | . 8 3 9 4 27 28 4 . 2 . 8 7 . 6 4 . 8 . 17 . 7 5 12 28 12 7 12 Power 20 | . 1 . 1 . 2 2 . . . . 2 . . . . . . . 2 . . 1 2 4 1 . 2 Engine 6 | . 1 . 1 . 2 . . . . . 2 . . . . . . . . . . . . . . . . Core 2 | . . . . . . 2 . . . . . . . . . . . . . . . . . . . . . Reactor 12 | . . . . . . . . . . . . . . . . . . . 2 . . 1 2 4 1 . 2 Propulsion 57 | . 2 . 5 2 12 11 1 . . . . 3 . 2 . . 1 . 1 . 2 1 5 2 3 1 3 Treads 17 | . . . 4 1 12 . . . . . . . . . . . . . . . . . . . . . . Leg 2 | . 2 . . . . . . . . . . . . . . . . . . . . . . . . . . Wheel 2 | . . . 1 1 . . . . . . . . . . . . . . . . . . . . . . . Hover 36 | . . . . . . 11 1 . . . . 3 . 2 . . 1 . 1 . 2 1 5 2 3 1 3 Flight . | . . . . . . . . . . . . . . . . . . . . . . . . . . . . Utility 99 | . 1 1 2 2 8 8 2 . 2 . 6 4 . 4 2 . 4 . 10 . 2 2 5 17 6 6 5 Device 54 | . . . . . 5 4 . . 1 . 3 1 . 2 2 . 1 . 5 . 1 1 5 11 5 4 3 Storage 5 | . . 1 1 . 1 . . . . . . . . . . . . . 1 . . . . . . 1 . Processor 19 | . . . . . . 2 . . 1 . 3 . . 1 . . 2 . 3 . . . . 4 1 1 1 Hackware 6 | . . . . . . 1 . . . . . 3 . . . . 1 . . . 1 . . . . . . Protection 15 | . 1 . 1 2 2 1 2 . . . . . . 1 . . . . 1 . . 1 . 2 . . 1 Artifact . | . . . . . . . . . . . . . . . . . . . . . . . . . . . . Weapon 42 | . 4 2 1 . 5 7 1 . . . . . . . 2 . 3 . 4 . 3 1 . 5 2 . 2 Energy Gun 4 | . . 1 1 . 2 . . . . . . . . . . . . . . . . . . . . . . Energy Cannon 4 | . . . . . . 1 . . . . . . . . . . . . 1 . . 1 . . 1 . . Ballistic Gun 5 | . 2 . . . 2 . . . . . . . . . . . . . . . . . . 1 . . . Ballistic Cannon 1 | . . . . . . . . . . . . . . . . . . . . . 1 . . . . . . Launcher 9 | . 2 1 . . 1 3 . . . . . . . . 1 . . . . . . . . 1 . . . Special Weapon . | . . . . . . . . . . . . . . . . . . . . . . . . . . . . Impact Weapon 2 | . . . . . . . . . . . . . . . . . . . 2 . . . . . . . . Slashing Weapon 9 | . . . . . . 2 1 . . . . . . . 1 . . . . . 2 . . 1 . . 2 Piercing Weapon 8 | . . . . . . 1 . . . . . . . . . . 3 . 1 . . . . 2 1 . . Special Melee Weapon . | . . . . . . . . . . . . . . . . . . . . . . . . . . . . Unidentified Prototypes 47 | . . . . . 4 5 1 . . . 1 . . . . . 5 . 2 . . 3 2 13 6 4 1 Parts Lost 70 | . . 2 1 4 2 2 . . . . . . . 4 . . 1 . 2 . 2 1 18 . 5 1 25 Power 13 | . . . 1 . . 1 . . . . . . . . . . . . 1 . . . 3 . 1 . 6 Propulsion 20 | . . 1 . 2 . 1 . . . . . . . 2 . . 1 . . . 1 1 5 . 1 1 4 Utility 29 | . . 1 . 2 2 . . . . . . . . 2 . . . . . . 1 . 9 . 1 . 11 Weapon 8 | . . . . . . . . . . . . . . . . . . . 1 . . . 1 . 2 . 4 Highest Loss Streak 8 | . . 2 1 2 1 1 . . . . . . . 2 . . 1 . 2 . 1 1 8 . 4 1 8 To Critical Strikes 1 | . . . . . . . . . . . . . . . . . . . . . . . . . . . 1 Average Backups 13 | . 7 8 7 6 14 13 14 13 14 14 14 14 15 14 14 15 13 12 15 18 17 17 16 15 17 17 14 Power 1 | . 1 1 . . . . 1 1 1 1 1 1 1 1 1 1 1 2 2 3 3 2 1 . 1 1 1 Propulsion 2 | . 2 2 1 1 3 2 3 3 3 3 3 4 4 3 3 3 3 3 3 3 3 2 2 . 2 3 2 Utility 5 | . 1 2 2 1 4 2 4 4 6 7 6 6 7 7 7 8 7 6 7 8 8 8 7 6 6 7 6 Weapon 3 | . 2 3 3 4 5 7 5 5 3 3 3 3 3 2 3 2 1 . 2 3 2 3 3 4 5 4 3 Tool/Special . | . . . . . . . . . . . . . . . . . . . . . . . . . . . . Unused Backups 55 | . 6 . . . 10 4 . . 1 . 3 2 . . 1 . 3 . 2 1 . 3 3 5 2 3 6 Power 5 | . . . . . 1 1 . . . . . . . . . . . . 1 . . . 2 . . . . Propulsion 14 | . 2 . . . 1 . . . . . 1 2 . . . . . . 1 . . 1 . 1 1 2 2 Utility 16 | . 2 . . . 2 . . . . . 1 . . . . . 3 . . 1 . 1 1 2 . 1 2 Weapon 20 | . 2 . . . 6 3 . . 1 . 1 . . . 1 . . . . . . 1 . 2 1 . 2 Tool/Special . | . . . . . . . . . . . . . . . . . . . . . . . . . . . . Average Slot Usage (%) 93 | . 94 73 96 99 98 90 94 100 100 100 97 99 100 99 94 94 97 92 96 100 99 99 93 77 91 94 81 Engine 4 | . 13 13 10 11 9 . . . . . 3 5 5 5 5 5 5 5 1 . . 1 . . . . . Reactor 2 | . . . . . . . . . . . . . . . . . . . 3 5 5 6 7 6 8 12 5 Treads 7 | . . . 31 35 34 . . . . . . . . . . . . . . . . . . . . . . Leg 2 | . 27 15 2 . . . . . . . . . . . . . . . . . . . . . . . . Hover 17 | . . . . . . 29 30 35 35 35 30 27 27 26 27 27 26 25 30 30 29 27 26 19 20 20 18 Device 12 | . . . . . 18 14 11 12 9 12 22 11 11 8 11 11 11 11 12 15 15 17 17 13 19 24 18 Storage 7 | . 14 14 11 11 9 7 7 7 7 7 6 5 5 5 5 5 5 5 5 5 5 4 4 4 4 4 2 Processor 10 | . . . . . . 13 14 14 17 14 13 16 16 16 16 16 16 16 15 15 15 13 13 16 15 16 15 Hackware 7 | . . . . . . 6 7 7 7 7 6 21 22 21 16 16 16 16 12 10 10 9 9 8 8 8 6 Protection 4 | . 10 1 8 10 7 . 3 1 1 1 . . . 1 5 5 5 5 8 10 10 9 4 1 4 . . Energy Gun 3 | . . 13 18 11 8 . . . . . . . . . . . . . . . . . . . . . . Ballistic Gun 1 | . 16 . . . 9 . . . . . . . . . . . . . . . . . . . . . . Launcher 2 | . 11 14 3 10 . . . . . . . . . . 4 5 1 4 1 . . . . 1 . . . Slashing Weapon 3 | . . . . . . 4 8 14 14 14 10 11 11 10 1 . . . . . 8 9 8 4 1 . 2 Piercing Weapon 1 | . . . . . . 3 . . . . . . . . . . 6 . 1 5 . . . . 6 8 6 Peak Build Rating 241 | . 9 11 14 13 33 51 57 54 58 58 72 93 91 100 98 95 112 105 128 122 131 149 157 188 213 217 241 Average Rating 86 | . 8 8 13 12 27 41 47 53 56 56 65 89 91 95 94 94 105 103 118 121 127 141 144 149 196 206 197 On Entrance 83 | 6 6 9 8 12 12 33 51 53 54 58 56 70 91 91 90 95 95 107 105 121 122 129 143 118 187 203 213 Naked Turns 28 | . . . . . . . . . . . . . . . . . . . . . . . . . . . 28 Heaviest Build 108 | 13 23 24 39 37 44 38 51 45 45 45 50 41 41 53 46 44 44 44 77 71 79 86 91 97 92 96 108 Greatest Support 102 | 20 20 20 80 80 86 43 41 41 45 45 53 58 52 62 59 59 63 64 78 78 81 93 93 89 98 100 102 Greatest Overweight (x) 35 | . 2 2 1 2 2 1 1 1 1 1 . . . . . . . . . . 1 . 1 1 . 1 35 Average Overweight (x) . | . . 1 . 1 . . . . . . . . . . . . . . . . . . . . . . . Largest Inventory Capacity 20 | . 8 10 15 15 15 15 15 15 15 15 15 15 15 15 15 15 15 15 20 20 20 20 20 20 20 20 20 Average Capacity 16 | . 8 9 14 15 15 15 15 15 15 15 15 15 15 15 15 15 15 15 18 20 20 20 20 20 20 20 19 Most Carried 20 | . 8 9 10 7 15 15 15 14 15 15 15 15 15 15 15 15 15 15 20 20 20 20 20 20 20 20 20 Average Carried 14 | . 7 8 7 6 14 13 14 13 14 14 14 14 15 14 14 14 14 13 17 19 19 19 18 17 19 19 16 Final Capacity 20 | 8 8 10 15 15 15 15 15 15 15 15 15 15 15 15 15 15 15 15 20 20 20 20 20 20 20 20 5 Final Carried 20 | 6 8 9 7 7 15 14 13 14 14 15 15 15 15 13 15 15 15 13 20 20 20 20 15 20 19 20 3 Class Distribution -------------------- 22% | Mutant 14% | Hacker-Ninja 12% | Hacker-Scout 10% | Scavenger-Mutant 10% | Scout 7% | Scavenger-Ninja 5% | Hacker-Assassin 4% | Wizard-Scout Dominant Class ---------------- Mutant | -10/Materials Mutant | -10/Mines Mutant | -9/Materials Mutant | -9/Mines Scavenger-Mutant | -8/Materials Scout | -7/Factory Scout | -7/Lower Caves Scout | -7/Lower Caves Gladiator | -7/Data Miner Mutant | -6/Proximity Caves Scout | -6/Factory Wizard-Scout | -5/Factory Wizard-Scout | -5/Waste Wizard-Scout | -5/Factory Hacker-Scout | -5/Upper Caves Hacker-Scout | -5/Upper Caves Hacker-Scout | -5/Warlord Hacker-Scout | -4/Proximity Caves Hacker-Ninja | -4/Factory Hacker-Ninja | -4/Waste Hacker-Ninja | -4/Factory Hacker-Ninja | -3/Research Hacker-Ninja | -3/Quarantine Hacker-Assassin | -2/Research Scavenger-Ninja | -2/Testing Scavenger-Ninja | -2/Section 7 Scavenger-Ninja | -1/Access Resources | -11 -10 -10 -9 -9 -8 -7 -7 -7 -7 -6 -6 -5 -5 -5 -5 -5 -5 -4 -4 -4 -4 -3 -3 -2 -2 -2 -1 ----------- Run | Yrd Mat Min Mat Min Mat Fac Low Low Dat Pro Fac Fac Was Fac Upp Upp War Pro Fac Was Fac Res Qua Res Tes Sec Acc Matter Collected 5746 | 200 44 159 254 323 849 381 99 29 . 40 240 91 . 137 322 . 120 7 481 . 173 289 153 432 316 408 199 Remotely 10 | . . . . . . . . . . . . . . . 10 . . . . . . . . . . . . Salvage Created 9206 | . 271 144 390 447 2131 725 50 49 26 . 405 196 . 209 212 . . 116 491 . 173 433 331 . 762 701 944 Parts 503 | . 18 9 22 26 116 37 2 4 4 . 20 13 . 14 10 . . 4 23 . 7 25 32 . 43 44 30 Haulers Intercepted 17 | . 1 . 1 . 6 4 . . . . 1 . . 1 . . . . . . 1 2 . . . . . Recyclers Shooed 4 | . . 2 . . . . . . . . . 1 . . . . . . . . . . . . . . 1 Parts Field Recycled . | . . . . . . . . . . . . . . . . . . . . . . . . . . . . Retrieved Matter . | . . . . . . . . . . . . . . . . . . . . . . . . . . . . Parts Self-Destructed 22 | . . . . . . . 2 2 . . . . . . 6 . . 12 . . . . . . . . . Prevented . | . . . . . . . . . . . . . . . . . . . . . . . . . . . . Kills | -11 -10 -10 -9 -9 -8 -7 -7 -7 -7 -6 -6 -5 -5 -5 -5 -5 -5 -4 -4 -4 -4 -3 -3 -2 -2 -2 -1 ------- Run | Yrd Mat Min Mat Min Mat Fac Low Low Dat Pro Fac Fac Was Fac Upp Upp War Pro Fac Was Fac Res Qua Res Tes Sec Acc Combat Hostiles Destroyed 161 | . 10 3 10 18 39 4 1 1 . . 1 5 . 1 13 . . 10 11 . . . 3 . 9 1 21 Melee 32 | . . . . . . 1 1 1 . . 1 . . . . . . . 6 . . . 3 . 9 1 9 Guns 43 | . . . 3 1 39 . . . . . . . . . . . . . . . . . . . . . . AOE 84 | . 10 3 6 17 . 3 . . . . . 5 . 1 13 . . 10 4 . . . . . . . 12 Classes Destroyed 19 | . 4 3 1 3 3 1 . . . . . 1 . . 1 . . 1 . . . . . . . 1 . Worker 19 | . . 2 2 . 2 3 . . . . 3 1 . . . . . . 2 . 1 1 1 . . 1 . Builder 23 | . . 1 1 . 2 2 . . . . . 1 . 4 . . . . 2 . . 2 3 . . 5 . Tunneler 2 | . . . . 1 . . . . . . . . . . . . . . 1 . . . . . . . . Hauler 17 | . 1 . 1 . 6 4 . . . . 1 . . 1 . . . . . . 1 2 . . . . . Recycler 10 | . . 1 . 1 3 3 . . . . 1 . . . . . . . . . . . . . . 1 . Minesweeper 1 | . . . . . . . . . . . . . . . 1 . . . . . . . . . . . . Mechanic 3 | . . . . . . . . . . . . 1 . . . . . . 1 . . . . . . 1 . Operator 8 | . . . . . 1 . . . . . . . . 1 . . . . 2 . . . 1 . 2 1 . Drone 2 | . . . . . . . . . . . . . . . . . . 2 . . . . . . . . . Watcher 18 | . 2 . . . 1 4 . . . . 2 1 . . . . . . . . 1 4 . . 1 2 . Swarmer 55 | . 3 3 1 3 11 3 . . . . . 5 . 1 10 . . 3 5 . . . . . . . 7 Grunt 52 | . 7 . 7 10 17 . . . . . . . . . 3 . . 2 1 . . . . . . . 5 Brawler 4 | . . . . 2 1 . . . . . . . . . . . . 1 . . . . . . . . . Duelist 4 | . . . . . 1 . . . . . . . . . . . . 2 . . . . . . . . 1 Researcher 3 | . . . . . . . . . . . . . . . . . . . . . . . . . . 3 . Sentry 11 | . . . 2 . 8 . . . . . . . . . . . . . 1 . . . . . . . . Hunter 5 | . . . . . 1 . . . . . . . . . . . . . . . . . . . 2 . 2 Programmer 20 | . . . . . . 1 1 1 . . 1 . . . . . . . 4 . . . 3 . 7 . 2 S7 Guard 1 | . . . . . . . . . . . . . . . . . . . . . . . . . . 1 . Tracker 2 | . . . . . . . . . . . . . . . . . . . . . . . . . . . 2 Combat Programmer 2 | . . . . . . . . . . . . . . . . . . . . . . . . . . . 2 Assembled 3 | . . . . 3 . . . . . . . . . . . . . . . . . . . . . . . Thug 1 | . . . 1 . . . . . . . . . . . . . . . . . . . . . . . . Best Kill Streak 11 | . 5 3 7 4 4 4 1 1 1 . 3 6 . 2 4 . . 10 6 . 2 4 3 . 3 3 11 Combat Bots Only 11 | . 5 3 5 3 4 3 1 1 . . 1 5 . 1 4 . . 10 5 . . . 3 . 3 1 11 Max Kills in Single Turn 5 | . 2 2 2 3 2 3 1 1 1 . 1 5 . 1 4 . . 3 3 . 1 1 1 . 1 1 4 Gunslinging 1 | . . . . . 1 . . . . . . . . . . . . . . . . . . . . . . Exploded 4 | . 2 2 2 3 . 2 . . . . . 4 . 1 4 . . 3 2 . . . . . . . 4 Melee 1 | . . . . . . 1 1 1 . . 1 . . . . . . . 1 . . . 1 . 1 1 1 Uniques/NPCs Destroyed 1 | . . . . . . . . . 1 . . . . . . . . . . . . . . . . . . Data Miner (-7/Data Miner) Combat | -11 -10 -10 -9 -9 -8 -7 -7 -7 -7 -6 -6 -5 -5 -5 -5 -5 -5 -4 -4 -4 -4 -3 -3 -2 -2 -2 -1 -------- Run | Yrd Mat Min Mat Min Mat Fac Low Low Dat Pro Fac Fac Was Fac Upp Upp War Pro Fac Was Fac Res Qua Res Tes Sec Acc Hostile Shots Fired 1189 | . 23 3 50 26 147 34 21 4 4 3 7 5 . 48 8 . 22 2 138 2 8 6 207 3 62 28 328 Missed 459 | . 6 . 22 8 45 19 5 . 2 3 3 2 . 17 6 . 7 2 59 2 5 2 93 2 29 11 109 Hits 730 | . 17 3 28 18 102 15 16 4 2 . 4 3 . 31 2 . 15 . 79 . 3 4 114 1 33 17 219 Projectile 730 | . 17 3 28 18 102 15 16 4 2 . 4 3 . 31 2 . 15 . 79 . 3 4 114 1 33 17 219 AOE 1 | . . . . . . . . . . . . . . . . . . . 1 . . . . . . . . Critical Strikes 40 | . . . 3 1 3 2 1 . . . . . . . . . . . 4 . . . 6 . 1 5 14 Actively Blocked 1 | . . . . . . . . . . . . . . . . . . . . . . . 1 . . . . Damage Taken 14849 | . 261 74 461 416 1397 201 240 61 96 . 66 50 . 811 25 . 290 . 1443 . 220 157 2248 25 758 327 5222 Core 3609 | . 44 29 29 12 194 45 47 16 . . 20 17 . 147 13 . 74 . 283 . 98 16 371 . 138 . 2016 Absorbed by Shields . | . . . . . . . . . . . . . . . . . . . . . . . . . . . . Redirected to Shielding 299 | . . . . . . . . . . . . . . . . . 19 . 64 . . 25 191 . . . . Regen/Repaired (Parts) 998 | . . . . . . . . . . . 121 . . . . . 46 . 297 . 223 15 . 86 . . 210 Core Remaining (%) 78 | 100 . 70 . 89 64 . . . . 84 97 . . . . . . 74 . . 66 . 62 . . 81 . Volleys Fired 255 | . 15 18 30 22 123 3 . . . . . 2 . 2 11 . . 14 4 . 3 . . . 2 . 6 Largest 2 | . 2 1 2 2 2 1 . . . . . 1 . 1 1 . . 1 1 . 1 . . . 1 . 1 Hottest 140 | . 40 65 130 130 140 36 . . . . . 36 . 36 46 . . 46 46 . 55 . . . 113 . 49 Shots Fired 400 | . 17 18 47 26 244 3 . . . . . 2 . 2 11 . . 14 4 . 3 . . . 2 . 7 Gun 310 | . 4 16 38 8 244 . . . . . . . . . . . . . . . . . . . . . . Cannon 5 | . . . . . . . . . . . . . . . . . . . . . 3 . . . 2 . . Launcher 85 | . 13 2 9 18 . 3 . . . . . 2 . 2 11 . . 14 4 . . . . . . . 7 Special . | . . . . . . . . . . . . . . . . . . . . . . . . . . . . Kinetic 141 | . 4 . . . 134 . . . . . . . . . . . . . . . 3 . . . . . . Thermal 174 | . . 16 38 8 110 . . . . . . . . . . . . . . . . . . . 2 . . Explosive 85 | . 13 2 9 18 . 3 . . . . . 2 . 2 11 . . 14 4 . . . . . . . 7 Electromagnetic . | . . . . . . . . . . . . . . . . . . . . . . . . . . . . Robot Hit Streak 25 | . 4 5 13 13 25 2 . . . . . 2 . 1 . . . 2 3 . . . . . . . 3 Robot Miss Streak 3 | . 3 1 2 2 3 1 . . . . . . . 1 . . . . . . . . . . . . 1 Penetration Max . | . . . . . . . . . . . . . . . . . . . . . . . . . . . . Secondary Targets 3 | . . . . . 3 . . . . . . . . . . . . . . . . . . . . . . Max Gunslinging Chain 1 | . . . . . 1 . . . . . . . . . . . . . . . . . . . . . . Shots Hit Robots 480 | . 10 13 32 19 180 28 8 3 1 . 14 7 . 11 2 . . 1 18 . 4 16 23 . 21 22 47 Core Hits 326 | . 17 7 21 32 73 17 1 1 1 . 7 11 . 3 16 . . 27 11 . 2 8 6 . 14 12 39 Critical Kills 1 | . . . . . 1 . . . . . . . . . . . . . . . . . . . . . . Critical Parts Destroyed 4 | . . . . . . . . . . . . . . . . . . . 4 . . . . . . . . Critical Strikes 30 | . . . 2 . 8 1 . 1 . . . . . . . . . . 5 . 1 1 2 . 4 2 3 Burn 9 | . . . 2 . 7 . . . . . . . . . . . . . . . . . . . . . . Destroy 1 | . . . . . 1 . . . . . . . . . . . . . . . . . . . . . . Smash 4 | . . . . . . . . . . . . . . . . . . . 4 . . . . . . . . Sever 8 | . . . . . . 1 . 1 . . . . . . . . . . . . 1 1 2 . . . 2 Impale 7 | . . . . . . . . . . . . . . . . . . . . . . . . . 4 2 1 Sunder 1 | . . . . . . . . . . . . . . . . . . . 1 . . . . . . . . Melee Attacks 528 | . . . . . . 56 16 6 27 1 40 14 . 29 2 . . . 55 . 26 30 37 21 49 58 61 Impact 30 | . . . . . . . . . . . . . . . . . . . 30 . . . . . . . . Slashing 319 | . . . . . . 25 16 6 27 1 40 14 . 29 2 . . . . . 26 30 37 21 8 . 37 Piercing 165 | . . . . . . 31 . . . . . . . . . . . . 11 . . . . . 41 58 24 Entropic 14 | . . . . . . . . . . . . . . . . . . . 14 . . . . . . . . Sneak Attacks 62 | . . . . . . 12 . . 1 . 5 3 . 5 1 . . . 6 . 2 8 7 . . 12 . Combat Hostiles 1 | . . . . . . . . . . . . . . . . . . . . . . . . . . 1 . Follow-up Attacks 33 | . . . . . . . 2 . . . 1 . . 1 . . . . . . . 2 4 . 3 2 18 Damage Inflicted 27612 | . 854 404 1179 1382 3428 1927 329 113 81 . 852 775 . 791 1391 . . 1520 2274 . 295 1153 1426 . 1172 1662 4604 Guns 4016 | . 18 177 411 83 3327 . . . . . . . . . . . . . . . . . . . . . . Cannons . | . . . . . . . . . . . . . . . . . . . . . . . . . . . . Explosions 10006 | . 836 215 757 1281 . 338 . . . . . 395 . 144 1244 . . 1520 878 . . . . . . . 2398 Melee 13448 | . . . . . . 1589 329 113 81 . 852 380 . 647 147 . . . 1396 . 295 1153 1426 . 1172 1662 2206 Ramming 142 | . . 12 11 18 101 . . . . . . . . . . . . . . . . . . . . . . Kinetic 1717 | . 18 . . . 1699 . . . . . . . . . . . . . . . . . . . . . . Thermal 2299 | . . 177 411 83 1628 . . . . . . . . . . . . . . . . . . . . . . Explosive 10006 | . 836 215 757 1281 . 338 . . . . . 395 . 144 1244 . . 1520 878 . . . . . . . 2398 Electromagnetic . | . . . . . . . . . . . . . . . . . . . . . . . . . . . . Impact 685 | . . . . . . . . . . . . . . . . . . . 685 . . . . . . . . Slashing 8132 | . . . . . . 1044 329 113 81 . 852 380 . 647 147 . . . . . 295 1153 1426 . 284 . 1381 Piercing 4089 | . . . . . . 545 . . . . . . . . . . . . 169 . . . . . 888 1662 825 Entropic 542 | . . . . . . . . . . . . . . . . . . . 542 . . . . . . . . Highest Corruption 24 | . . . . . . 2 5 5 5 5 2 . 6 6 . . . . 2 11 11 . 11 . 7 9 24 Average Corruption 5 | . . . . . . 1 2 5 5 5 1 . 6 5 . . . . 1 8 11 . 6 . 3 7 14 Corruption Purged 8 | . . . . . . . . . . . . . . 6 . . . . 2 . . . . . . . . Corruption Blocked . | . . . . . . . . . . . . . . . . . . . . . . . . . . . . Effects 154 | . . . . . . 10 3 4 4 5 2 . 1 14 . . . . 14 5 33 . 11 . 12 25 11 Message Errors 33 | . . . . . . 4 . . 1 . . . . 3 . . . . 2 . 9 . 1 . 3 6 4 Matter Fused 36 | . . . . . . 1 1 2 1 2 1 . . 3 . . . . 4 2 11 . 1 . 3 4 . Heat Flow Errors 21 | . . . . . . 2 1 . 1 . . . . 1 . . . . 1 . 4 . 5 . 1 4 1 Energy Discharges 18 | . . . . . . 2 . 1 . . . . . 4 . . . . 1 1 2 . 1 . . 5 1 Parts Rejected 1 | . . . . . . . . . . . . . . . . . . . . . . . 1 . . . . Parts Fused 1 | . . . . . . . . . . . . . . . . . . . . . . . . . 1 . . Data Loss (minor) 21 | . . . . . . . . 1 . 3 1 . 1 2 . . . . 3 . 2 . 1 . 3 3 1 Data Loss (major) 12 | . . . . . . 1 1 . 1 . . . . . . . . . 3 . 3 . . . . 3 . Misfires 1 | . . . . . . . . . . . . . . . . . . . . . . . . . . . 1 Alerts 4 | . . . . . . . . . . . . . . 1 . . . . . . 1 . . . 1 . 1 Misdirections 6 | . . . . . . . . . . . . . . . . . . . . 2 1 . 1 . . . 2 Overload Shots . | . . . . . . . . . . . . . . . . . . . . . . . . . . . . Overflow Damage 3084 | . 13 . 49 34 . 244 27 . . . 161 54 . 253 150 . . 56 576 . 48 103 341 . 111 512 352 Projectiles . | . . . . . . . . . . . . . . . . . . . . . . . . . . . . Explosions 624 | . 13 . 49 34 . 41 . . . . . 14 . 56 88 . . 56 106 . . . . . . . 167 Melee 2460 | . . . . . . 203 27 . . . 161 40 . 197 62 . . . 470 . 48 103 341 . 111 512 185 Knockbacks 6 | . . . . . 2 . . . . . . . . . . . . . 4 . . . . . . . . Impact 6 | . . . . . 2 . . . . . . . . . . . . . 4 . . . . . . . . Kinetic . | . . . . . . . . . . . . . . . . . . . . . . . . . . . . Secondary . | . . . . . . . . . . . . . . . . . . . . . . . . . . . . Self-Inflicted Damage 501 | . 89 49 57 208 6 . . . . . . . . . . . . . 12 . . . . . . . 80 Shots 17 | . 3 2 2 7 . . . . . . . . . . . . . . 1 . . . . . . . 2 Rammed 14 | . . . 2 1 11 . . . . . . . . . . . . . . . . . . . . . . Targets Rammed 28 | . . 8 2 2 16 . . . . . . . . . . . . . . . . . . . . . . Kicked 8 | . . 8 . . . . . . . . . . . . . . . . . . . . . . . . . Crushed 6 | . . . . 1 5 . . . . . . . . . . . . . . . . . . . . . . Highest Temperature 359 | . 8 180 233 165 186 112 145 . 194 . . . . 239 . . . . 132 . 332 154 238 . 319 359 85 Average Temperature 76 | . 4 57 85 72 67 57 83 . 104 . . . . 94 . . . . 49 . 106 55 76 . 135 92 18 Received Heat Transfer 1599 | . 66 . 192 117 693 12 . . . . 9 . . 120 . . 12 . 102 . . 30 192 . 9 9 36 Effects 6 | . . . . . . . . . . . . . . . . . . . . . 1 . . . 1 4 . Shutdowns 1 | . . . . . . . . . . . . . . . . . . . . . . . . . . 1 . Energy Bleed 2 | . . . . . . . . . . . . . . . . . . . . . 1 . . . 1 . . Interference 3 | . . . . . . . . . . . . . . . . . . . . . . . . . . 3 . Siege Activations . | . . . . . . . . . . . . . . . . . . . . . . . . . . . . Martial Activations . | . . . . . . . . . . . . . . . . . . . . . . . . . . . . Shielding Activations . | . . . . . . . . . . . . . . . . . . . . . . . . . . . . Robots Disrupted . | . . . . . . . . . . . . . . . . . . . . . . . . . . . . Combat Hostiles . | . . . . . . . . . . . . . . . . . . . . . . . . . . . . Robots Corrupted 4 | . . . . . . . . . . . . . . . . . . . 4 . . . . . . . . Combat Hostiles 1 | . . . . . . . . . . . . . . . . . . . 1 . . . . . . . . Parts Fried 6 | . . . . . . . . . . . . . . . . . . . 6 . . . . . . . . Impact Corruptions 18 | . . . . . . . . . . . . . . . . . . . 18 . . . . . . . . Robots Melted 2 | . . . 2 . . . . . . . . . . . . . . . . . . . . . . . . Combat Hostiles 1 | . . . 1 . . . . . . . . . . . . . . . . . . . . . . . . Parts Melted 15 | . . 1 3 . 11 . . . . . . . . . . . . . . . . . . . . . . Heat Transferred 5291 | . . 407 1110 185 3589 . . . . . . . . . . . . . . . . . . . . . . Parts Sabotaged . | . . . . . . . . . . . . . . . . . . . . . . . . . . . . Parts Stolen . | . . . . . . . . . . . . . . . . . . . . . . . . . . . . Parts Stripped . | . . . . . . . . . . . . . . . . . . . . . . . . . . . . Power Chain Reactions . | . . . . . . . . . . . . . . . . . . . . . . . . . . . . Alert | -11 -10 -10 -9 -9 -8 -7 -7 -7 -7 -6 -6 -5 -5 -5 -5 -5 -5 -4 -4 -4 -4 -3 -3 -2 -2 -2 -1 ------- Run | Yrd Mat Min Mat Min Mat Fac Low Low Dat Pro Fac Fac Was Fac Upp Upp War Pro Fac Was Fac Res Qua Res Tes Sec Acc Maximum Alert Level 3 | . 1 . . 1 2 2 . . . . . . . . . . . . 3 . . . . . . . 2 Low Security (%) 74 | . 80 100 100 77 47 . . . . . 100 100 100 100 . . . . . 100 100 100 100 100 100 100 81 Level 1 14 | . 19 . . 22 11 73 . . . . . . . . . . . . 61 . . . . . . . 17 Level 2 10 | . . . . . 41 26 . . . . . . . . . . . . 35 . . . . . . . 1 Level 3 . | . . . . . . . . . . . . . . . . . . . 3 . . . . . . . . Level 4 . | . . . . . . . . . . . . . . . . . . . . . . . . . . . . Level 5 . | . . . . . . . . . . . . . . . . . . . . . . . . . . . . High Security . | . . . . . . . . . . . . . . . . . . . . . . . . . . . . Max Security . | . . . . . . . . . . . . . . . . . . . . . . . . . . . . Peak Influence 774 | . 231 94 189 252 669 440 . . . . 42 125 33 146 . . . . 774 155 87 76 54 16 107 133 420 Initial 356 | . . 74 . 67 55 287 . . . . 2 11 33 9 . . . . 356 155 87 . . 9 . 54 62 Average 132 | . 116 10 69 173 290 330 . . . . 11 16 24 47 . . . . 397 143 11 15 10 . 27 78 101 Influence Increases 8175 | . 363 110 479 531 1238 562 30 30 20 45 228 185 . 271 300 . 45 260 1285 . 96 174 222 63 438 424 776 Destroy 0b10 Robot/C 3420 | . 200 60 280 320 820 80 20 20 20 . 20 100 . 20 260 . . 240 220 . . . 60 . 180 80 420 Destroy 0b10 Robot/NC 525 | . 15 20 25 10 80 80 . . . . 35 20 . 30 5 . . 10 40 . 15 45 25 . 15 55 . Destroy Leader 694 | . 36 10 84 60 206 36 10 10 . . 16 12 . 2 20 . . 10 30 . 4 12 10 . 42 4 80 Allied During Kill 45 | . . . 21 8 16 . . . . . . . . . . . . . . . . . . . . . . Successful Hack 322 | . 6 . 6 . 20 52 . . . . 49 18 . 8 . . . . 30 . 39 22 12 . 9 42 9 Disable Machine 330 | . 60 . . 30 45 . . . . . 15 . . 15 . . . . 45 . . . 45 . 45 30 . Destroy Structure 844 | . 46 20 63 103 6 29 . . . . 18 20 . 46 . . . . 110 . 38 20 10 63 42 63 147 Advance Influence 300 | . . . . . . . . . . . . . . . . . . . 300 . . . . . . . . Partial Spotted 255 | . . . . . . 90 . . . . 15 15 . 15 . . . . 30 . . . 15 . 30 45 . Lose Combat Pursuer 1440 | . . . . . 45 195 . . . 45 60 . . 135 15 . 45 . 480 . . 75 45 . 75 105 120 Influence Decreases 7793 | . 172 301 306 562 749 798 307 93 75 40 209 113 83 277 194 103 40 185 932 318 221 174 205 80 340 418 498 Entered New Map 1468 | . . 117 . 106 87 344 147 23 55 . 3 13 63 4 4 23 10 15 34 288 38 . . 8 . 44 42 Time Decay 5334 | . 172 164 276 416 582 434 160 70 20 40 206 80 20 266 180 80 30 150 518 30 178 174 114 72 300 364 238 Search Patrol Dispatched 300 | . . . . . . . . . . . . . . . . . . . 300 . . . . . . . . Lost Part 500 | . . 20 10 40 20 20 . . . . . . . 7 . . . . 20 . 4 . 91 . 40 10 218 Lost Ally 191 | . . . 20 . 60 . . . . . . 20 . . 10 . . 20 60 . 1 . . . . . . Squads Dispatched 81 | . 2 . 1 . 5 6 . . . . 2 2 . 5 . . . . 13 . 5 9 4 3 8 6 10 Investigation 18 | . . . 1 . 2 2 . . . . . . . . . . . . 6 . 3 2 . 2 . . . Extermination 27 | . . . . . . 3 . . . . 2 1 . 2 . . . . 5 . 1 4 2 . 4 2 1 Reinforcement 32 | . 2 . . . 2 1 . . . . . 1 . 3 . . . . 2 . 1 3 2 1 4 4 6 Assault 1 | . . . . . 1 . . . . . . . . . . . . . . . . . . . . . . Garrison . | . . . . . . . . . . . . . . . . . . . . . . . . . . . . Intercept 3 | . . . . . . . . . . . . . . . . . . . . . . . . . . . 3 Searches Triggered 2 | . . . . . . . . . . . . . . . . . . . 2 . . . . . . . . Construction Impeded 2 | . . . . . . . . . . . . . . 1 . . . . . . . . . . . . 1 Haulers Reinforced 4 | . . . . . . 1 . . . . . . . 1 . . . . . . . . . . . . 2 Active Scanning Responses . | . . . . . . . . . . . . . . . . . . . . . . . . . . . . Cargo Convoy Interrupts . | . . . . . . . . . . . . . . . . . . . . . . . . . . . . Stealth | -11 -10 -10 -9 -9 -8 -7 -7 -7 -7 -6 -6 -5 -5 -5 -5 -5 -5 -4 -4 -4 -4 -3 -3 -2 -2 -2 -1 --------- Run | Yrd Mat Min Mat Min Mat Fac Low Low Dat Pro Fac Fac Was Fac Upp Upp War Pro Fac Was Fac Res Qua Res Tes Sec Acc Distress Signals 32 | . 1 . 1 . 2 . . . . . . . . . . . . . 3 . . . 3 18 1 . 3 Communications Jammed 6 | . . . . . . . . . . . . . . . . . . . . . 2 4 . . . . . Distress Signals 6 | . . . . . . . . . . . . . . . . . . . . . 2 4 . . . . . Times Spotted 397 | . 13 3 19 20 58 25 1 1 4 3 7 8 6 14 8 . 13 6 43 5 9 17 21 4 22 14 53 Peak Tracking Total 21 | . 5 3 5 4 5 5 1 1 4 3 2 6 6 10 4 . 7 8 16 6 5 4 12 8 4 4 21 Tactical Retreats 48 | . . . . . 2 7 . . . 1 3 . . 4 1 . 2 . 12 . . 3 2 . 3 4 4 Traps | -11 -10 -10 -9 -9 -8 -7 -7 -7 -7 -6 -6 -5 -5 -5 -5 -5 -5 -4 -4 -4 -4 -3 -3 -2 -2 -2 -1 ------- Run | Yrd Mat Min Mat Min Mat Fac Low Low Dat Pro Fac Fac Was Fac Upp Upp War Pro Fac Was Fac Res Qua Res Tes Sec Acc Traps Triggered 26 | . 6 . 1 . 2 . . . . . . 1 . 2 . . . . 4 . 3 2 2 . 1 1 1 Indirectly . | . . . . . . . . . . . . . . . . . . . . . . . . . . . . Trap Hack Attempts . | . . . . . . . . . . . . . . . . . . . . . . . . . . . . Triggered . | . . . . . . . . . . . . . . . . . . . . . . . . . . . . Disarmed . | . . . . . . . . . . . . . . . . . . . . . . . . . . . . Reprogrammed . | . . . . . . . . . . . . . . . . . . . . . . . . . . . . Reused . | . . . . . . . . . . . . . . . . . . . . . . . . . . . . Traps Extracted . | . . . . . . . . . . . . . . . . . . . . . . . . . . . . Installed . | . . . . . . . . . . . . . . . . . . . . . . . . . . . . Triggered . | . . . . . . . . . . . . . . . . . . . . . . . . . . . . Most Traps Carried 6 | . . . . . . . . . . . . . . . 6 6 6 6 6 6 6 6 6 6 6 6 6 Machines | -11 -10 -10 -9 -9 -8 -7 -7 -7 -7 -6 -6 -5 -5 -5 -5 -5 -5 -4 -4 -4 -4 -3 -3 -2 -2 -2 -1 ---------- Run | Yrd Mat Min Mat Min Mat Fac Low Low Dat Pro Fac Fac Was Fac Upp Upp War Pro Fac Was Fac Res Qua Res Tes Sec Acc Machines Disabled 25 | . 4 . . 2 3 . . 1 1 . 1 . . 1 . . . 1 3 . . . 3 . 3 2 . Max in Single Turn 2 | . 1 . . 2 1 . . 1 1 . 1 . . 1 . . . 1 1 . . . 1 . 1 1 . Garrison Access 12 | . . . . . 1 1 . . . . 1 1 . 1 . . . . 2 . 1 1 . 1 1 . 1 Machines Repaired . | . . . . . . . . . . . . . . . . . . . . . . . . . . . . Machines Dismantled . | . . . . . . . . . . . . . . . . . . . . . . . . . . . . Machines Sabotaged . | . . . . . . . . . . . . . . . . . . . . . . . . . . . . Overloaded Fab Kills . | . . . . . . . . . . . . . . . . . . . . . . . . . . . . Hacking | -11 -10 -10 -9 -9 -8 -7 -7 -7 -7 -6 -6 -5 -5 -5 -5 -5 -5 -4 -4 -4 -4 -3 -3 -2 -2 -2 -1 --------- Run | Yrd Mat Min Mat Min Mat Fac Low Low Dat Pro Fac Fac Was Fac Upp Upp War Pro Fac Was Fac Res Qua Res Tes Sec Acc Machines Accessed 131 | . 3 . 1 . 10 19 2 3 3 . 12 7 . 7 1 . 2 . 12 . 14 9 3 1 6 14 2 Terminals 83 | . 3 . 1 . 9 14 . . . . 7 4 . 5 . . . . 6 . 9 6 2 . 5 12 . Fabricators 6 | . . . . . . 2 . . . . 1 1 . . . . . . 1 . 1 . . . . . . Repair Stations 8 | . . . . . . . . . . . 1 . . . . . . . 2 . 2 1 . 1 . . 1 Recycling Units . | . . . . . . . . . . . . . . . . . . . . . . . . . . . . Scanalyzers 10 | . . . . . . . . . . . 2 1 . 1 . . . . 1 . 1 1 1 . . 2 . Garrison Access 13 | . . . . . 1 3 . . . . 1 1 . 1 . . . . 2 . 1 1 . . 1 . 1 Total Hacks 390 | . 8 . 3 . 30 43 8 7 23 . 27 28 . 46 1 . 2 . 34 . 39 34 5 1 13 34 4 Successful 241 | . 2 . 2 . 12 21 8 7 23 . 19 13 . 25 1 . 2 . 22 . 28 22 3 1 7 20 3 Failed 148 | . 5 . 1 . 18 22 . . . . 8 15 . 21 . . . . 12 . 11 12 2 . 6 14 1 Catastrophic 30 | . . . . . 5 3 . . . . 4 4 . 2 . . . . . . 1 2 1 . 3 5 . Database Lockouts 1 | . 1 . . . . . . . . . . . . . . . . . . . . . . . . . . Manual 217 | . 8 . 3 . 25 26 . . . . 12 13 . 31 . . 1 . 25 . 25 16 2 1 11 18 . Terminals 256 | . 8 . 3 . 29 31 . . . . 14 19 . 40 . . . . 20 . 27 24 4 . 12 25 . Fabricators 17 | . . . . . . 7 . . . . 1 4 . . . . . . 4 . 1 . . . . . . Repair Stations 17 | . . . . . . . . . . . 5 . . . . . . . 3 . 4 2 . 1 . . 2 Recycling Units . | . . . . . . . . . . . . . . . . . . . . . . . . . . . . Scanalyzers 39 | . . . . . . . . . . . 6 4 . 4 . . . . 5 . 5 5 1 . . 9 . Garrison Access 20 | . . . . . 1 5 . . . . 1 1 . 2 . . . . 2 . 2 3 . . 1 . 2 Terminal Hacks 96 | . 2 . 2 . 2 7 8 7 23 . . 3 . 10 1 . 2 . 4 . 7 9 1 . 2 6 . Record 18 | . . . . . . . 7 5 6 . . . . . . . . . . . . . . . . . . Part Schematic 11 | . . . . . . 1 . . 8 . . . . 1 . . . . . . 1 . . . . . . Robot Schematic 6 | . . . . . . . . . 6 . . . . . . . . . . . . . . . . . . Robot Analysis 3 | . 2 . 1 . . . . . . . . . . . . . . . . . . . . . . . . Prototype ID Bank 4 | . . . . . . . . . 3 . . . . 1 . . . . . . . . . . . . . Open Door 7 | . . . . . . . 1 2 . . . . . . 1 . 2 . . . . . . . . 1 . Level Access Points 2 | . . . . . . . . . . . . . . . . . . . . . 1 . 1 . . . . Branch Access Points 6 | . . . . . 1 . . . . . . 1 . 1 . . . . 1 . 1 1 . . . . . Machine Index 2 | . . . . . . . . . . . . . . . . . . . . . 1 . . . . 1 . Terminal Index 5 | . . . . . . . . . . . . 1 . 1 . . . . 1 . . . . . 1 1 . Fabricator Index 1 | . . . . . . 1 . . . . . . . . . . . . . . . . . . . . . Garrison Index 1 | . . . . . . . . . . . . . . 1 . . . . . . . . . . . . . Alert Level 2 | . . . . . . . . . . . . . . . . . . . . . 1 1 . . . . . Locate Traps 3 | . . . . . . 1 . . . . . . . 1 . . . . . . . . . . . 1 . Dispatch Records 1 | . . . . . . . . . . . . . . . . . . . . . . 1 . . . . . Extermination Status 1 | . . . . . . . . . . . . . . . . . . . . . . . . . . 1 . Recall Extermination 9 | . . . . . . 1 . . . . . . . 1 . . . . 2 . 1 4 . . . . . Recall Reinforcements 1 | . . . . . . . . . . . . . . . . . . . . . . 1 . . . . . Hauler Manifests 7 | . . . 1 . 1 2 . . . . . . . 2 . . . . . . 1 . . . . . . Registered Components 1 | . . . . . . 1 . . . . . . . . . . . . . . . . . . . . . Registered Prototypes 1 | . . . . . . . . . . . . . . 1 . . . . . . . . . . . . . Zone Layout 4 | . . . . . . . . . . . . 1 . . . . . . . . . 1 . . 1 1 . Fabricator Hacks 7 | . . . . . . 3 . . . . . 2 . . . . . . 2 . . . . . . . . Network Status 2 | . . . . . . . . . . . . 1 . . . . . . 1 . . . . . . . . Load Schematic 3 | . . . . . . 2 . . . . . . . . . . . . 1 . . . . . . . . Build 2 | . . . . . . 1 . . . . . 1 . . . . . . . . . . . . . . . Repair Station Hacks 10 | . . . . . . . . . . . 4 . . . . . . . . . 2 2 . . . . 2 Scan Component 5 | . . . . . . . . . . . 2 . . . . . . . . . 1 1 . . . . 1 Repair 5 | . . . . . . . . . . . 2 . . . . . . . . . 1 1 . . . . 1 Recycling Unit Hacks . | . . . . . . . . . . . . . . . . . . . . . . . . . . . . Scanalyzer 34 | . . . . . . . . . . . 6 3 . 4 . . . . 5 . 4 5 1 . . 6 . Insert Component 22 | . . . . . . . . . . . 5 2 . 2 . . . . 3 . 2 3 1 . . 4 . Analyze 12 | . . . . . . . . . . . 1 1 . 2 . . . . 2 . 2 2 . . . 2 . Garrison Access Hacks 11 | . . . . . 1 1 . . . . 1 1 . 1 . . . . 2 . 1 1 . . 1 . 1 Seal Access 11 | . . . . . 1 1 . . . . 1 1 . 1 . . . . 2 . 1 1 . . 1 . 1 Unauthorized Hacks 83 | . . . . . 9 10 . . . . 8 4 . 10 . . . . 9 . 14 5 1 1 4 8 . Terminals 76 | . . . . . 9 9 . . . . 8 4 . 10 . . . . 6 . 12 5 1 . 4 8 . Assimilate 1 | . . . . . . . . . . . . . . 1 . . . . . . . . . . . . . Botnet 37 | . . . . . 4 3 . . . . 3 2 . 4 . . . . 2 . 6 3 1 . 2 7 . Disrupt 1 | . . . . . . . . . . . . . . . . . . . . . . . . . . 1 . Skim 37 | . . . . . 5 6 . . . . 5 2 . 5 . . . . 4 . 6 2 . . 2 . . Fabricators 3 | . . . . . . 1 . . . . . . . . . . . . 1 . 1 . . . . . . Prioritize 1 | . . . . . . 1 . . . . . . . . . . . . . . . . . . . . . Liberate 2 | . . . . . . . . . . . . . . . . . . . 1 . 1 . . . . . . Repair Stations 4 | . . . . . . . . . . . . . . . . . . . 2 . 1 . . 1 . . . Patch 4 | . . . . . . . . . . . . . . . . . . . 2 . 1 . . 1 . . . Recycling Units . | . . . . . . . . . . . . . . . . . . . . . . . . . . . . Scanalyzers . | . . . . . . . . . . . . . . . . . . . . . . . . . . . . Garrison Access . | . . . . . . . . . . . . . . . . . . . . . . . . . . . . Data Cores Recovered 3 | . . . . . . . . . . . . . . . . . . . . . . . 1 . 1 1 . Used 3 | . . . . . . . . . . . . . . . . . . . . . . . 1 . 1 1 . Hacking Detections 101 | . 3 . 1 . 9 18 . . . . 11 5 . 5 . . . . 8 . 12 8 2 . 5 13 1 Full Trace Events 9 | . . . . . . 2 . . . . . . . . . . . . 4 . 2 1 . . . . . Feedback Events 2 | . . . . . . 1 . . . . . . . . . . . . . . 1 . . . . . . Corruption 1 | . . . . . . 1 . . . . . . . . . . . . . . . . . . . . . Hackware Fried 1 | . . . . . . . . . . . . . . . . . . . . . 1 . . . . . . Feedback Blocked . | . . . . . . . . . . . . . . . . . . . . . . . . . . . . Robot Schematics Acquired 7 | . . . . . . . . . 6 . . . . . . . . . . . . . . . . 1 . Robots Built 3 | . . . . . . . . . . . . 3 . . . . . . . . . . . . . . . Authchips . | . . . . . . . . . . . . . . . . . . . . . . . . . . . . Time 76 | . . . . . . . . . . . . 76 . . . . . . . . . . . . . . . Total Robot Build Rating 15 | . . . . . . . . . . . . 15 . . . . . . . . . . . . . . . Part Schematics Acquired 31 | . . . . . . 1 . . 8 . 1 1 . 3 . . . . 2 . 3 2 . . . 10 . Parts Built 2 | . . . . . . 2 . . . . . . . . . . . . . . . . . . . . . Authchips . | . . . . . . . . . . . . . . . . . . . . . . . . . . . . Time 53 | . . . . . . 53 . . . . . . . . . . . . . . . . . . . . . Total Part Build Rating 12 | . . . . . . 12 . . . . . . . . . . . . . . . . . . . . . Parts Repaired 5 | . . . . . . . . . . . 2 . . . . . . . . . 1 1 . . . . 1 Time 205 | . . . . . . . . . . . 104 . . . . . . . . . 28 51 . . . . 22 Parts Recycled . | . . . . . . . . . . . . . . . . . . . . . . . . . . . . Recycled Matter . | . . . . . . . . . . . . . . . . . . . . . . . . . . . . Retrieved Matter . | . . . . . . . . . . . . . . . . . . . . . . . . . . . . Retrieved Components . | . . . . . . . . . . . . . . . . . . . . . . . . . . . . Parts Scanalyzed 12 | . . . . . . . . . . . 1 1 . 2 . . . . 2 . 2 2 . . . 2 . Part Schematics Acquired 12 | . . . . . . . . . . . 1 1 . 2 . . . . 2 . 2 2 . . . 2 . Parts Damaged 1 | . . . . . . . . . . . . . . . . . . . 1 . . . . . . . . Bothacking | -11 -10 -10 -9 -9 -8 -7 -7 -7 -7 -6 -6 -5 -5 -5 -5 -5 -5 -4 -4 -4 -4 -3 -3 -2 -2 -2 -1 ------------ Run | Yrd Mat Min Mat Min Mat Fac Low Low Dat Pro Fac Fac Was Fac Upp Upp War Pro Fac Was Fac Res Qua Res Tes Sec Acc Used RIF Installer . | . . . . . . . . . . . . . . . . . . . . . . . . . . . . Robots Hacked . | . . . . . . . . . . . . . . . . . . . . . . . . . . . . Non-combat . | . . . . . . . . . . . . . . . . . . . . . . . . . . . . Combat . | . . . . . . . . . . . . . . . . . . . . . . . . . . . . Robot Hacks Applied . | . . . . . . . . . . . . . . . . . . . . . . . . . . . . Relay Couplers Released 1 | . . . . . . . . . . . . . . . . . . . . . . . . 1 . . . Machine Destruction 1 | . . . . . . . . . . . . . . . . . . . . . . . . 1 . . . Fabnet Peak Effective % . | . . . . . . . . . . . . . . . . . . . . . . . . . . . . Robots Rewired 2 | . . . . . . . . . . . . . . . . . . 2 . . . . . . . . . Allies Hacked . | . . . . . . . . . . . . . . . . . . . . . . . . . . . . Hacks Repelled . | . . . . . . . . . . . . . . . . . . . . . . . . . . . . Allies | -11 -10 -10 -9 -9 -8 -7 -7 -7 -7 -6 -6 -5 -5 -5 -5 -5 -5 -4 -4 -4 -4 -3 -3 -2 -2 -2 -1 -------- Run | Yrd Mat Min Mat Min Mat Fac Low Low Dat Pro Fac Fac Was Fac Upp Upp War Pro Fac Was Fac Res Qua Res Tes Sec Acc Total Allies 20 | . . 2 . 4 . . . 2 . . . 3 1 1 . . . 2 2 . 3 . . . . . . Largest Group 4 | . . 2 2 4 4 . . 2 . . . 3 1 1 1 . . 2 2 . 3 . . . . . . Highest-Rated Group 141 | . . 42 42 71 71 . . 40 . . . 87 31 26 26 . . 97 108 . 141 . . . . . . Highest-Rated Ally 54 | . . 31 31 31 31 . . 20 . . . 29 31 26 26 . . 49 54 . 47 . . . . . . Total Orders . | . . . . . . . . . . . . . . . . . . . . . . . . . . . . Ally Attacks 81 | . . . 28 6 30 . . . . . . . 3 . . . . 5 4 . 5 . . . . . . Total Damage 1248 | . . . 396 41 381 . . . . . . . 42 . . . . 132 99 . 157 . . . . . . Kills 13 | . . . 5 1 3 . . . . . . . . . . . . 4 . . . . . . . . . Allies Corrupted . | . . . . . . . . . . . . . . . . . . . . . . . . . . . . Allies Melted 3 | . . . . . . . . . . . . . . . . . 1 . . . . . . 2 . . . Intel | -11 -10 -10 -9 -9 -8 -7 -7 -7 -7 -6 -6 -5 -5 -5 -5 -5 -5 -4 -4 -4 -4 -3 -3 -2 -2 -2 -1 ------- Run | Yrd Mat Min Mat Min Mat Fac Low Low Dat Pro Fac Fac Was Fac Upp Upp War Pro Fac Was Fac Res Qua Res Tes Sec Acc Active Infowar (turns) 11916 | . . . . . . 1009 260 146 44 114 798 415 51 739 376 179 733 303 1423 63 868 732 350 1232 833 803 445 Optics 206 | . . . . . . . . . . . . . . . . . . . . . . . . . . 2 204 Sensors 11414 | . . . . . . 1005 258 132 40 114 796 413 51 739 375 179 732 303 1286 63 851 727 278 1232 740 793 307 Terrain 2 | . . . . . . . . . . . . . . . . . . . . . . . . 2 . . . Structural 10335 | . . . . . . 902 259 146 44 33 797 415 51 471 327 179 731 303 1255 . 678 729 263 1226 751 518 257 Cloaking 1877 | . . . . . . . . . . . . . . . . . . . . . . . 171 5 755 768 178 Jamming 451 | . . . . . . . . . . . . . . . . . . . 42 . 94 153 162 . . . . Robot Analysis Total 3 | . 2 . 1 . . . . . . . . . . . . . . . . . . . . . . . . Derelict Logs Recovered 9 | . . 1 . 1 . . . 2 . 1 . . . . 2 1 . 1 . . . . . . . . . Drone Launches . | . . . . . . . . . . . . . . . . . . . . . . . . . . . . Drone Recoveries . | . . . . . . . . . . . . . . . . . . . . . . . . . . . . Exploration | -11 -10 -10 -9 -9 -8 -7 -7 -7 -7 -6 -6 -5 -5 -5 -5 -5 -5 -4 -4 -4 -4 -3 -3 -2 -2 -2 -1 ------------- Run | Yrd Mat Min Mat Min Mat Fac Low Low Dat Pro Fac Fac Was Fac Upp Upp War Pro Fac Was Fac Res Qua Res Tes Sec Acc Turns Passed 18692 | . 525 1579 630 1017 2415 1074 326 146 155 118 814 415 51 780 376 179 733 303 1433 63 875 732 480 1232 878 848 515 Spaces Moved 21532 | 1 284 626 293 692 1267 1929 607 314 180 307 1487 813 91 1227 555 324 1107 295 2061 111 1191 1117 494 1158 1116 1374 511 Core 52 | . 1 . . . . . . . . . . . . . . . . . . . . . . . . . 51 Treads 1453 | . . . 260 136 1057 . . . . . . . . . . . . . . . . . . . . . . Legs 910 | 1 283 626 . . . . . . . . . . . . . . . . . . . . . . . . . Wheels 799 | . . . 33 556 210 . . . . . . . . . . . . . . . . . . . . . . Hover 18318 | . . . . . . 1929 607 314 180 307 1487 813 91 1227 555 324 1107 295 2061 111 1191 1117 494 1158 1116 1374 460 Flight . | . . . . . . . . . . . . . . . . . . . . . . . . . . . . Fastest Speed 31 | 120 100 120 105 115 115 38 36 36 31 31 36 36 47 47 54 54 54 54 53 53 51 54 49 44 44 44 46 Average Speed 68 | 120 161 241 178 135 151 42 40 36 38 36 36 43 47 52 54 54 54 56 53 53 52 54 52 92 51 47 57 Slowest Speed 1800 | 120 260 260 240 160 320 98 98 96 96 96 36 54 47 62 54 54 62 62 61 53 127 54 115 115 59 108 1800 Overloaded Moves 42 | . . . . . . . 1 . 27 9 . . . 5 . . . . . . . . . . . . . Propulsion Burnouts . | . . . . . . . . . . . . . . . . . . . . . . . . . . . . Robots Hopped . | . . . . . . . . . . . . . . . . . . . . . . . . . . . . Potential Cave-ins . | . . . . . . . . . . . . . . . . . . . . . . . . . . . . Cave-ins Triggered . | . . . . . . . . . . . . . . . . . . . . . . . . . . . . Teleports 2 | . . . . . . . . . . . . . . . . . . . . . . . 1 . . 1 . Exploration Rate (%) 56 | 1 57 96 40 98 90 60 63 47 80 59 46 29 77 26 68 59 94 47 48 80 33 35 75 34 89 44 12 Regions Visited 27 Branch Regions 13 Pre-discovered Areas 9 | . . 2 . 2 1 1 . 1 1 . . . . . 1 . . . . . . . . . . . . Known Exits Taken 18 | . . . . . 1 1 1 1 1 1 1 . . 1 1 1 1 1 . . 1 1 1 1 1 1 . Unknown Exits Taken 5 | 1 1 1 1 1 . . . . . . . . . . . . . . . . . . . . . . . Scrap Searched 16 | . . 1 . 2 . . 4 2 . 2 . . . . 3 2 . . . . . . . . . . . Spaces Dug 174 | . . . . . . 15 3 1 . 1 18 5 . 15 . . . . 25 . 17 10 5 20 13 21 5 Terrain Destroyed 900 | . 43 32 58 138 . 35 3 1 . 1 18 9 . 24 168 . . 166 61 . 19 10 5 20 14 21 54 Melee 172 | . . . . . . 15 3 1 . 1 18 5 . 15 . . . . 25 . 16 10 5 20 12 21 5 Projectile 5 | . . . . . . . . . . . . . . . . . . . . . 3 . . . 2 . . AOE 723 | . 43 32 58 138 . 20 . . . . . 4 . 9 168 . . 166 36 . . . . . . . 49 Terrain Rammed . | . . . . . . . . . . . . . . . . . . . . . . . . . . . . Walls Destroyed . | . . . . . . . . . . . . . . . . . . . . . . . . . . . . Machines Disabled . | . . . . . . . . . . . . . . . . . . . . . . . . . . . . Actions | -11 -10 -10 -9 -9 -8 -7 -7 -7 -7 -6 -6 -5 -5 -5 -5 -5 -5 -4 -4 -4 -4 -3 -3 -2 -2 -2 -1 --------- Run | Yrd Mat Min Mat Min Mat Fac Low Low Dat Pro Fac Fac Was Fac Upp Upp War Pro Fac Was Fac Res Qua Res Tes Sec Acc Total 24269 | . 327 662 350 740 1577 2108 660 334 223 310 1699 852 98 1310 617 328 1239 417 2309 115 1388 1191 649 1282 1338 1495 651 Wait 1259 | . . 4 10 16 80 48 30 13 13 . 141 8 8 36 26 1 112 102 129 1 144 26 75 27 119 32 58 Move 21507 | . 283 625 292 691 1266 1928 606 313 179 306 1486 813 90 1226 554 323 1106 294 2061 110 1190 1116 493 1157 1115 1373 511 Hop . | . . . . . . . . . . . . . . . . . . . . . . . . . . . . Pick Up 158 | . 6 . 2 2 23 15 1 1 3 1 6 3 . 5 7 2 3 1 16 2 4 8 9 13 7 10 8 Fast Attach 85 | . 16 2 3 2 4 6 1 . . . 4 1 . . 2 . 2 . 6 . 2 1 1 20 4 3 5 Attach 99 | . . . 5 2 1 13 2 . . . 4 1 . 4 4 . 2 2 12 . 2 3 14 7 4 3 14 Detach 30 | . . 1 1 . . 3 1 . . . 3 . . . 2 . . . 3 . . . 4 9 1 . 2 Swap 216 | . 2 2 3 3 30 15 5 2 3 2 12 9 . 8 2 . 8 . 15 . 4 7 16 6 39 17 6 Drop 172 | . 5 2 2 . 34 23 1 . 2 . 8 5 . 3 7 2 6 2 12 2 5 5 6 22 8 9 1 Fire 255 | . 15 18 30 22 123 3 . . . . . 2 . 2 11 . . 14 4 . 3 . . . 2 . 6 Melee 445 | . . . . . . 54 13 5 23 1 35 10 . 26 2 . . . 51 . 21 25 31 21 39 48 40 Ram 3 | . . . . 1 2 . . . . . . . . . . . . . . . . . . . . . . Kick 8 | . . 8 . . . . . . . . . . . . . . . . . . . . . . . . . Crush 17 | . . . 2 1 14 . . . . . . . . . . . . . . . . . . . . . . Escape Stasis 13 | . . . . . . . . . . . . . . . . . . . . . 13 . . . . . . Rewire 2 | . . . . . . . . . . . . . . . . . . 2 . . . . . . . . . Trap . | . . . . . . . . . . . . . . . . . . . . . . . . . . . . Miscellaneous . | . . . . . . . . . . . . . . . . . . . . . . . . . . . . Route ------- -11/Scrapyard -10/Materials -10/Mines (discovered 3 exits: *Mat x2 / [*Sub]) -9/Materials (discovered 2 exits: *Mat / [*Min]) -9/Mines (discovered 3 exits: *Mat x2 / [*Exi]) -8/Materials (discovered 5 exits: *Fac x3 / *Sto x2) -7/Factory (discovered 4 exits: *Fac x3 / *Low) -7/Lower Caves -7/Lower Caves (discovered 2 exits: Fac / *Dat) -7/Data Miner -6/Proximity Caves -6/Factory (discovered 4 exits: *Fac x3 / *Low) -5/Factory (discovered 4 exits: Upp x2 / Ext x2) -5/Waste -5/Factory (discovered 5 exits: *Fac / *Upp x2 / Ext x2) -5/Upper Caves -5/Upper Caves -5/Warlord -4/Proximity Caves -4/Factory (discovered 3 exits: *Upp x2 / *Arm) -4/Waste -4/Factory (discovered 7 exits: *Res x4 / *Upp x2 / Arm) -3/Research (discovered 5 exits: *Res x3 / *Qua x2) -3/Quarantine -2/Research (discovered 2 exits: *Acc / *Tes) -2/Testing (discovered 3 exits: *Acc / *Sec / [*Frg]) -2/Section 7 -1/Access History --------- Turn | Location | Event 1 | -11/Scrapyard | Discovered new exit (range 0) 1 | -11/Scrapyard | Entered Materials 323 | -10/Materials | Build established: Mutant 477 | -10/Materials | Central database locked down 498 | -10/Materials | Discovered new exit (range 16) 526 | -10/Materials | Entered Mines 566 | -10/Mines | Received a Rocket Launcher from a helpful Derelict 591 | -10/Mines | Learned location of Storage (-8) 830 | -10/Mines | Discovered new exit (range 9) 1253 | -10/Mines | Discovered new exit (range 4) 1336 | -10/Mines | Discovered new exit (range 15) 2105 | -10/Mines | Entered Materials 2105 | -9/Materials | Accompanied by 2 allies 2105 | -9/Materials | Evolved 2 slots: Propulsion x2 2110 | -9/Materials | Led the pair of lost Derelicts to an unsafe place 2608 | -9/Materials | Discovered new exit (range 12) 2717 | -9/Materials | Discovered new exit (range 11) 2735 | -9/Materials | Entered Mines 2829 | -9/Mines | A weapon hastily lodged in a ceiling crevice suddenly fell to the ground 3077 | -9/Mines | Deemed a non-threat by the Exiles lab entrance 3077 | -9/Mines | Discovered new exit (range 5) 3090 | -9/Mines | Assembled infested the area 3156 | -9/Mines | Discovered new exit (range 14) 3396 | -9/Mines | Assisted by bots powering up and referring to "LRC-V3" 3452 | -9/Mines | Discovered new exit (range 9) 3502 | -9/Mines | Escorted by a lone wolf Derelict 3610 | -9/Mines | Build established: Scavenger-Mutant 3752 | -9/Mines | Entered Materials 3752 | -8/Materials | Accompanied by 4 allies 3752 | -8/Materials | Evolved 2 slots: Utility x2 3871 | -8/Materials | Discovered new exit (range 5) 4294 | -8/Materials | Discovered new exit (range 5) 4593 | -8/Materials | Identified exit to Storage 5023 | -8/Materials | Learned Storage emergency access door positions 5103 | -8/Materials | Identified exit to Factory 5172 | -8/Materials | Learned location of 1 exit from Extension 5276 | -8/Materials | Learned Recycling recycling unit intel 5421 | -8/Materials | Learned Factory trap positions 5624 | -8/Materials | Build established: Mutant 5752 | -8/Materials | First assault squad dispatched 6167 | -8/Materials | Entered Factory 6167 | -7/Factory | Evolved 2 slots: Utility x2 6168 | -7/Factory | Identified exit to Factory 6169 | -7/Factory | Loaded intel: 72 trap records 6496 | -7/Factory | Noticed a derelict Sapper rigging charges 6537 | -7/Factory | Build established: Scout 6759 | -7/Factory | Learned location of Zion (-6) 6800 | -7/Factory | Learned Factory trap positions 6832 | -7/Factory | Learned 2 Lower Caves zone layouts 6866 | -7/Factory | Loaded intel: 6 fabricator locations 6890 | -7/Factory | Learned 4 Proximity Caves zone layouts 6923 | -7/Factory | Learned location of 1 exit from Lower Caves 7134 | -7/Factory | Discovered new exit (range 7) 7136 | -7/Factory | Identified exit to Lower Caves 7179 | -7/Factory | Found Powered Armor 7206 | -7/Factory | Fabricated Cmb. Gravmag System (x2) 7241 | -7/Factory | Entered Lower Caves 7242 | -7/Lower Caves | Identified exit to Lower Caves 7250 | -7/Lower Caves | Entered an active Warlord outpost 7258 | -7/Lower Caves | Learned Research emergency access door positions 7258 | -7/Lower Caves | Learned Research terminal intel 7258 | -7/Lower Caves | Learned Armory garrison access intel 7536 | -7/Lower Caves | Found Alien Artifact 7536 | -7/Lower Caves | Identified Core Expander 7536 | -7/Lower Caves | Installed Core Expander, added new Propulsion slot 7567 | -7/Lower Caves | Entered another Lower Caves area 7674 | -7/Lower Caves | A Commander dispatched an escort 7678 | -7/Lower Caves | Learned location of 1 exit from Research 7678 | -7/Lower Caves | Learned 8 Factory zone layouts 7678 | -7/Lower Caves | Learned Armory emergency access door positions 7678 | -7/Lower Caves | Learned Research security intel 7678 | -7/Lower Caves | Learned Research garrison access intel 7679 | -7/Lower Caves | Discovered new exit (range 15) 7691 | -7/Lower Caves | Identified exit to Data Miner 7696 | -7/Lower Caves | Learned Factory security intel 7713 | -7/Lower Caves | Entered Data Miner 7713 | -7/Data Miner | Accompanied by 2 allies 7713 | -7/Data Miner | Discovered new exit (range 6) 7714 | -7/Data Miner | Commander's escort returned to base 7714 | -7/Data Miner | Commander's escort returned to base 7720 | -7/Data Miner | Met Data Miner 7746 | -7/Data Miner | Learned location of Section 7 (-2) 7746 | -7/Data Miner | Acquired the access code to Warlord's prototype stash 7749 | -7/Data Miner | Received God Mode back door access code from Data Miner 7760 | -7/Data Miner | Destroyed Data Miner 7765 | -7/Data Miner | Found Prototype Hackware 7766 | -7/Data Miner | Found Prototype Hackware 7767 | -7/Data Miner | Found Prototype Hackware 7769 | -7/Data Miner | Data Conduit disabled 7868 | -7/Data Miner | Identified exit to Proximity Caves 7868 | -7/Data Miner | Entered Proximity Caves 7883 | -6/Proximity Caves | Learned Factory garrison access intel 7986 | -6/Proximity Caves | Entered Factory 7986 | -6/Factory | Evolved 2 slots: Utility x2 7987 | -6/Factory | Identified exit to Factory 7989 | -6/Factory | Loaded intel: 88 trap records 7991 | -6/Factory | Loaded intel: 4 garrison access locations 8075 | -6/Factory | Repaired Aerolev Unit 8120 | -6/Factory | Repaired Powered Armor 8345 | -6/Factory | Discovered exit to Factory (range 13) 8421 | -6/Factory | Identified Ghost Barrier 8421 | -6/Factory | Identified System Mapper 8462 | -6/Factory | Discovered new exit (range 12) 8466 | -6/Factory | Identified exit to Lower Caves 8648 | -6/Factory | Identified Deep Network Scanner 8749 | -6/Factory | Discovered exit to Factory (range 16) 8800 | -6/Factory | Entered another Factory area 8800 | -5/Factory | Evolved 2 slots: Utility x2 9095 | -5/Factory | Build established: Wizard-Scout 9113 | -5/Factory | Fabricated G-50 Soldier? 9164 | -5/Factory | Identified exit to Upper Caves 9164 | -5/Factory | Identified exit to Extension 9215 | -5/Factory | Sucked down chute 9215 | -5/Factory | Entered Waste 9216 | -5/Waste | Met a frightened Derelict 9225 | -5/Waste | Spotted C-40 Crusher 9230 | -5/Waste | EMP discharged 9230 | -5/Waste | Spotted C-40 Crusher 9236 | -5/Waste | Spotted C-40 Crusher 9237 | -5/Waste | Spotted C-40 Crusher 9237 | -5/Waste | Spotted C-40 Crusher 9238 | -5/Waste | Spotted C-40 Crusher 9262 | -5/Waste | Discovered new exit (range 10) 9265 | -5/Waste | Identified exit to Factory 9266 | -5/Waste | Entered Factory 9374 | -5/Factory | Discovered new exit (range 15) 10046 | -5/Factory | Entered Upper Caves 10046 | -5/Upper Caves | Accompanied by 1 ally 10101 | -5/Upper Caves | Entered a destroyed Warlord outpost 10289 | -5/Upper Caves | Identified exit to Upper Caves 10422 | -5/Upper Caves | Entered another Upper Caves area 10503 | -5/Upper Caves | Learned Factory emergency access door positions 10511 | -5/Upper Caves | Found DCF Scrap (14 items) 10590 | -5/Upper Caves | Discovered new exit (range 15) 10598 | -5/Upper Caves | Identified exit to Warlord 10601 | -5/Upper Caves | Entered Warlord 10616 | -5/Warlord | Discovered new exit (range 14) 10648 | -5/Warlord | Build established: Hacker-Scout 10707 | -5/Warlord | Received a Watcher feed algorithm from an ecstatic Tinkerer 10812 | -5/Warlord | Opened Warlord's prototype stash 10820 | -5/Warlord | Found Prototype Processor 10820 | -5/Warlord | Identified Exp. Targeting Computer 10825 | -5/Warlord | Found Prototype Processor 10825 | -5/Warlord | Identified Exp. Target Analyzer 10830 | -5/Warlord | Found Prototype Device 10830 | -5/Warlord | Identified System Purifier 10837 | -5/Warlord | Found Prototype Reactor 10847 | -5/Warlord | Found System Mapper 10900 | -5/Warlord | Warlord's base attacked by MAIN.C 10937 | -5/Warlord | Found Prototype Piercing Weapon 10937 | -5/Warlord | Identified Vortex Lance 10939 | -5/Warlord | Found Vortex Lance 10995 | -5/Warlord | Met Warlord 11164 | -5/Warlord | Opened side exit 11250 | -5/Warlord | Warlord forces counterattacked 11334 | -5/Warlord | Identified exit to Proximity Caves 11334 | -5/Warlord | Entered Proximity Caves 11338 | -4/Proximity Caves | Spotter reported a threat 11338 | -4/Proximity Caves | Spotter reported a threat 11392 | -4/Proximity Caves | Destroyed 10 combat bots 11419 | -4/Proximity Caves | Learned Research security intel 11517 | -4/Proximity Caves | Discovered new exit (range 15) 11532 | -4/Proximity Caves | Identified exit to Factory 11637 | -4/Proximity Caves | Entered Factory 11637 | -4/Factory | Accompanied by 1 ally 11637 | -4/Factory | Evolved 2 slots: Propulsion x1, Utility x1 11658 | -4/Factory | Found Prototype Processor 11658 | -4/Factory | Identified Exp. Signal Interpreter 12305 | -4/Factory | Identified Vortex Chain Reactor 12533 | -4/Factory | Discovered new exit (range 16) 12595 | -4/Factory | Identified exit to Upper Caves 12595 | -4/Factory | Identified exit to Armory 12637 | -4/Factory | Search patrols dispatched 12685 | -4/Factory | Found Prototype Processor 12692 | -4/Factory | Spotted B-86 Titan 12850 | -4/Factory | Build established: Hacker-Ninja 12887 | -4/Factory | Search patrols dispatched 13070 | -4/Factory | Manually triggered Chute Trap 13070 | -4/Factory | Sucked down chute 13070 | -4/Factory | Entered Waste 13076 | -4/Waste | Spotted C-40 Crusher 13076 | -4/Waste | Spotted C-40 Crusher 13085 | -4/Waste | EMP discharged 13085 | -4/Waste | System corruption reached 10% 13088 | -4/Waste | Spotted C-40 Crusher 13088 | -4/Waste | Spotted C-40 Crusher 13103 | -4/Waste | Spotted C-40 Crusher 13104 | -4/Waste | Spotted C-40 Crusher 13128 | -4/Waste | Discovered new exit (range 10) 13132 | -4/Waste | Identified exit to Factory 13133 | -4/Waste | Entered Factory 13386 | -4/Factory | Discovered exit to Upper Caves (range 12) 13467 | -4/Factory | Repaired Smartbomb Launcher 13618 | -4/Factory | System Mapper fried by hacking feedback 13716 | -4/Factory | Identified exit to Research 13777 | -4/Factory | Learned Armory garrison access intel 13826 | -4/Factory | Learned location of 1 exit from Upper Caves 13864 | -4/Factory | Learned Testing emergency access door positions 13893 | -4/Factory | Learned 2 Armory zone layouts 13914 | -4/Factory | Learned location of 3 exits from Research 13923 | -4/Factory | Learned Research emergency access door positions 13972 | -4/Factory | Learned location of 1 exit from Upper Caves 14008 | -4/Factory | Entered Research 14008 | -3/Research | Evolved 2 slots: Power x1, Utility x1 14009 | -3/Research | Identified exit to Quarantine 14009 | -3/Research | Identified exit to Research 14012 | -3/Research | Loaded intel: 24 terminal locations 14013 | -3/Research | Loaded intel: 4 garrison access locations 14131 | -3/Research | Identified Exp. Melee Analysis Suite 14545 | -3/Research | Repaired Broken Adv. Phase Shifter? 14740 | -3/Research | Entered Quarantine 14786 | -3/Quarantine | Found Alien Artifact 14793 | -3/Quarantine | Found Alien Artifact 14822 | -3/Quarantine | Found Alien Artifact 14839 | -3/Quarantine | Identified Hpw. Transdimensional Reconstructor (x2) 14839 | -3/Quarantine | Warped through subspace 14862 | -3/Quarantine | Identified Dimensional Node Initializer 15095 | -3/Quarantine | Lost 8 parts (2p2n4u) 15118 | -3/Quarantine | Found Prototype Processor 15132 | -3/Quarantine | Cryocooling Duct disabled 15147 | -3/Quarantine | Ambient heat levels rising (+20) 15147 | -3/Quarantine | Non-combat units ordered to evacuate 15166 | -3/Quarantine | System corruption reached 10% 15207 | -3/Quarantine | Found Alien Slashing Weapon 15220 | -3/Quarantine | Entered Research 15220 | -2/Research | Warlord forces began assault on 0b10 15220 | -2/Research | Evolved 2 slots: Power x1, Utility x1 15224 | -2/Research | Identified Spectral Analyzer 15239 | -2/Research | Found Prototype Device 15239 | -2/Research | Identified Exp. Thermal Defense Suite 15242 | -2/Research | Lost 8 parts (1p3n3u1w) 15330 | -2/Research | Research machine network offline 15373 | -2/Research | Borebot progress halted 15512 | -2/Research | Met up with Warlord 15516 | -2/Research | Discovered new exit (range 15) 15520 | -2/Research | Build established: Hacker-Assassin 15525 | -2/Research | Lost 5 allies 15547 | -2/Research | Identified exit to Testing 15576 | -2/Research | Found Prototype Device 15576 | -2/Research | Identified Exp. Cloaking Device 15601 | -2/Research | Borebot progress halted 15680 | -2/Research | Lost 3 allies 16235 | -2/Research | Found Prototype Device 16235 | -2/Research | Identified Adv. Kinecellerator 16292 | -2/Research | Found Prototype Processor 16292 | -2/Research | Identified Exp. Core Analyzer 16320 | -2/Research | Discovered new exit (range 15) 16338 | -2/Research | Found Exp. Core Analyzer 16377 | -2/Research | Warlord invited to help at Command 16377 | -2/Research | Given Cave Seal Controls access code 16387 | -2/Research | Spotted Striker 16443 | -2/Research | Lost 4 allies 16452 | -2/Research | Entered Testing 16804 | -2/Testing | Found Exp. Core Analyzer 16824 | -2/Testing | Found Prototype Device 16824 | -2/Testing | Identified Exp. Focal Shield 17008 | -2/Testing | Spotted Striker 17008 | -2/Testing | Spotted Striker 17088 | -2/Testing | Found Prototype Device 17088 | -2/Testing | Identified Exp. Actuator Array 17113 | -2/Testing | Lost 4 parts (1p1n1u1w) 17191 | -2/Testing | Found Prototype Energy Cannon 17191 | -2/Testing | Identified Null Cannon 17202 | -2/Testing | Discovered new exit (range 9) 17208 | -2/Testing | Identified exit to Access 17217 | -2/Testing | Build established: Scavenger-Ninja 17276 | -2/Testing | Spotted Fortress 17308 | -2/Testing | Discovered new exit (range 6) 17308 | -2/Testing | Discovered new exit (range 7) 17310 | -2/Testing | Identified exit to Section 7 17330 | -2/Testing | Entered Section 7 17356 | -2/Section 7 | Discovered exit to Access (range 14) 17364 | -2/Section 7 | Initialized slip node 17633 | -2/Section 7 | Found Prototype Device 17633 | -2/Section 7 | Identified Adv. EM Shield 17724 | -2/Section 7 | Spotted S7 Guard 17839 | -2/Section 7 | Scanned by Researcher 17849 | -2/Section 7 | Warped through subspace to slip node 17869 | -2/Section 7 | Found Alien Artifact 17869 | -2/Section 7 | Identified Integrated Reactor 17869 | -2/Section 7 | Installed Integrated Reactor, increased core energy generation (+10) 17957 | -2/Section 7 | Found Centrium Heavy Armor Plating 17991 | -2/Section 7 | Spotted B-90 Cyclops 18094 | -2/Section 7 | Spotted S7 Guard 18105 | -2/Section 7 | Destroyed S7 Guard 18118 | -2/Section 7 | Found Prototype Protection 18122 | -2/Section 7 | Found Alien Artifact 18150 | -2/Section 7 | Build established: Scavenger-Gladiator 18156 | -2/Section 7 | Identified Core Regenerator 18156 | -2/Section 7 | Identified Hvy. Regenerative Plating 18178 | -2/Section 7 | Entered Access 18178 | -1/Access | Evolved 2 slots: Weapon x2 18178 | -1/Access | Identified Sigix Broadsword 18218 | -1/Access | Repaired Mic. Antimatter Reactor 18380 | -1/Access | Intercept squad dispatched 18411 | -1/Access | Spotted Tracker 18411 | -1/Access | Spotted Tracker 18420 | -1/Access | Destroyed Tracker 18443 | -1/Access | Spotted Combat Programmer 18451 | -1/Access | Destroyed Tracker 18476 | -1/Access | Spotted Combat Programmer 18477 | -1/Access | Lost 8 parts (3p1n3u1w) 18483 | -1/Access | Destroyed Combat Programmer 18495 | -1/Access | System corruption reached 10% 18504 | -1/Access | Destroyed Combat Programmer 18516 | -1/Access | Found Prototype Energy Gun 18575 | -1/Access | Lost 3 parts (1p1n1u) 18623 | -1/Access | Destroyed 11 combat bots 18654 | -1/Access | Lost 6 parts (2p1n3u) 18665 | -1/Access | Released all parts (14) 18669 | -1/Access | Core integrity fell below 50% 18674 | -1/Access | Core integrity fell below 20% 18674 | -1/Access | Used Core Regenerator, restored core integrity (+400) 18693 | -1/Access | Destroyed by G-73 Enforcer with Phase Gun Last Messages --------------- 18669_ Slug penetrates Wall. 18669_ Penetrated by Slug. 18669_ Knocked back. 18670_ O-32 Director sends out distress signal. 18670_ O-32 Director: "IFF HANDSHAKE FAILED. SECURING TERMINAL." 18671_ |SN=BLWI1H KAUVVOLB<3Y 18671_ Penetrated by Slug. 18673_ Slug penetrates Wall. 18673_ Penetrated by Slug. 18673_ Slug penetrates Wall. 18673_ Penetrated by Slug. 18674_ Core integrity regenerated (+400). 18676_ Penetrated by Slug. 18677_ ALERT: Hostiles spotted, dispatching reinforcements to Terminal A013. 18684_ ALERT: Potential suspicious activity detected, Programmers report to Access Zone 5T. 18686_ W-44 Eye sends out distress signal. 18688_ Slug penetrates Wall. 18690_ NCJAQPFHK&STZQC/VA